bitfinex/quotes_ETHUSD_20250725
["timestamp","ask_amount","ask_price","bid_price","bid_amount"]
[1753449324272,0.1364,3711.2,3710.8,0.56849]
[1753449324470,0.1364,3711.2,3710.7,1.0885]
[1753449324805,0.1364,3711.2,3710.8,0.4725]
[1753449325009,5.83101046,3711.2,3710.8,0.4725]
[1753449325185,2.69476407,3710.9,3710.8,4.289]
[1753449325384,3.28196407,3710.9,3710.8,4.289]
[1753449325606,2.69498194,3710.6,3710.5,4.289]
[1753449325906,2.69512721,3710.4,3710.1,5.0454]
[1753449326118,2.69522387,3710.3,3710.1,4.289]
[1753449326287,2.82967249,3710.2,3710.1,4.289]
[1753449326489,3.28247249,3710.2,3710.1,4.289]
[1753449326878,0.5872,3710.2,3710.0,4.288]
[1753449327205,3.14812251,3710.2,3710.0,4.288]
[1753449327369,0.1344,3710.1,3710.0,4.288]
[1753449328611,2.69487391,3710.8,3710.1,2.69531209]
[1753449328778,0.1344,3710.6,3710.3,0.8106]
[1753449328985,0.1344,3710.6,3710.4,3.16762515]
[1753449329303,0.1344,3710.9,3710.5,4.287]
[1753449329501,0.1344,3710.9,3710.7,0.8106]
[1753449329815,0.1344,3711.0,3710.7,0.8106]
[1753449330018,0.002,3711.2,3711.1,2.69461884]
[1753449330222,0.002,3711.2,3711.1,6.98161884]
[1753449330384,0.002,3711.2,3711.1,7.58851884]
[1753449331079,0.002,3711.2,3711.1,0.4725]
[1753449331282,0.002,3711.2,3711.1,4.286]
[1753449331886,0.002,3711.2,3711.1,4.7585]
[1753449332103,0.002,3711.2,3711.1,7.45311884]
[1753449332500,0.002,3711.2,3711.0,0.1344]
[1753449332705,0.002,3711.2,3711.1,4.7585]
[1753449333611,0.002,3711.2,3711.1,4.286]
[1753449333992,0.002,3711.2,3711.0,0.1344]
[1753449334189,3.14741884,3711.1,3710.7,0.1344]
[1753449334528,0.4528,3711.0,3710.8,4.285]
[1753449334712,3.14749543,3711.0,3710.7,0.1344]
[1753449334888,2.69469543,3711.0,3710.9,4.284]
[1753449335448,0.1344,3711.0,3710.9,4.284]
[1753449336029,0.1344,3711.0,3710.5,2.69504876]
[1753449336197,0.1344,3711.0,3710.6,4.284]
[1753449336386,0.1344,3711.0,3710.6,4.7349]
[1753449336591,0.1344,3711.0,3710.6,7.42985793]
[1753449336800,0.002,3711.2,3710.7,0.47784909]
[1753449336998,0.002,3711.2,3710.7,0.5853]
[1753449337203,0.002,3711.2,3710.8,1.80902147]
[1753449337399,0.4955,3711.2,3710.8,1.80902147]
[1753449338119,0.4955,3711.2,3710.8,4.50378603]
[1753449338337,0.002,3711.2,3710.9,0.4509]
[1753449338637,0.002,3711.2,3711.0,4.7339]
[1753449339133,0.002,3711.2,3711.1,0.4509]
[1753449339343,0.002,3711.2,3711.1,1.2066]
[1753449339565,0.002,3711.2,3711.1,4.91428959]
[1753449340132,0.4955,3711.2,3711.1,4.282]
[1753449340340,0.4955,3711.2,3710.4,2.69512213]
[1753449340341,2.69475435,3711.0,3710.5,0.1344]
[1753449340519,0.4935,3710.9,3710.4,0.9273]
[1753449340688,2.82938559,3710.6,3710.0,3.64377298]
[1753449340891,0.6279,3710.6,3710.1,4.282]
[1753449341088,0.1344,3710.6,3710.2,3.14616695]
[1753449341393,0.002,3711.2,3710.4,0.7811]
[1753449341721,0.1344,3711.0,3710.5,4.89325054]
[1753449342025,0.002,3711.2,3710.6,0.4509]
[1753449342238,0.1344,3711.1,3710.6,1.30175438]
[1753449342394,0.002,3711.2,3710.9,2.69475622]
[1753449342594,0.002,3711.2,3711.0,4.281]
[1753449342802,0.002,3711.2,3711.0,4.7319]
[1753449343494,0.002,3711.2,3711.0,4.281]
[1753449343711,2.6948482,3710.8,3710.2,0.7501]
[1753449344007,0.6279,3710.8,3710.3,4.281]
[1753449344206,0.1344,3710.8,3710.4,0.4509]
[1753449344405,0.1344,3710.8,3710.4,2.69507671]
[1753449344607,0.1344,3710.8,3710.7,2.69490931]
[1753449344932,0.1364,3711.2,3710.9,2.69471553]
[1753449345434,0.1364,3711.2,3709.4,2.69585377]
[1753449345435,0.55,3710.8,3709.4,2.69585377]
[1753449345638,3.0,3710.4,3709.4,4.28]
[1753449345792,2.69547507,3710.0,3709.4,4.28]
[1753449345990,0.4935,3710.0,3709.4,4.28]
[1753449346435,0.4935,3710.0,3709.5,0.74268901]
[1753449346809,3.18892368,3710.0,3709.5,1.19358901]
[1753449347169,0.4935,3709.9,3709.5,1.19358901]
[1753449347507,0.4935,3709.9,3709.5,3.88936087]
[1753449347840,0.4935,3709.9,3709.6,2.69570489]
[1753449348421,0.4935,3709.9,3709.6,2.69570044]
[1753449348624,0.4935,3710.4,3709.7,0.7576]
[1753449349002,3.4935,3710.4,3709.8,4.279]
[1753449349210,3.4935,3710.4,3709.9,2.69543035]
[1753449349211,0.4935,3710.4,3709.9,2.69543035]
[1753449349610,0.4935,3710.3,3709.9,2.69543035]
[1753449349934,0.4935,3710.3,3710.0,2.69541651]
[1753449350133,0.9557,3710.2,3709.2,2.6959398]
[1753449350337,0.9557,3710.2,3709.3,4.279]
[1753449350338,3.0,3710.1,3709.3,4.279]
[1753449350532,3.33579693,3710.2,3709.3,6.97487049]
[1753449350533,0.4935,3710.0,3709.3,6.97487049]
[1753449350842,3.0,3710.0,3709.3,7.42577049]
[1753449351336,2.69542547,3710.0,3709.3,4.7299]
[1753449351537,2.69561254,3709.8,3709.3,4.7299]
[1753449351829,3.18911254,3709.8,3709.3,4.7299]
[1753449352240,0.4935,3709.8,3709.3,4.7299]
[1753449352397,0.4935,3709.8,3709.3,7.42581907]
[1753449352734,2.6955095,3709.9,3709.4,0.4509]
[1753449353137,3.0,3709.9,3709.4,0.4509]
[1753449353312,3.18899919,3709.9,3709.4,0.4509]
[1753449353737,3.18899188,3709.9,3709.4,0.4509]
[1753449353914,3.4935,3709.9,3709.4,3.14674083]
[1753449354298,0.4935,3709.9,3709.5,0.4509]
[1753449354605,0.4935,3709.9,3709.6,4.278]
[1753449355430,3.18861609,3710.5,3709.8,2.69551506]
[1753449355632,3.49113735,3710.7,3709.9,4.277]
[1753449355633,3.0,3710.7,3709.9,4.277]
[1753449355840,0.1344,3710.4,3710.1,2.69529331]
[1753449356038,3.0,3710.7,3710.1,2.69529331]
[1753449356039,0.002,3710.7,3710.6,2.69498194]
[1753449356345,0.002,3710.7,3710.6,8.37818194]
[1753449359133,0.002,3710.7,3710.6,8.54428194]
[1753449361603,0.002,3711.2,3711.1,3.50191884]
[1753449361805,0.002,3711.2,3710.7,1.66172819]
[1753449362007,0.4935,3711.1,3711.0,2.69469145]
[1753449362241,0.4935,3711.1,3710.8,4.275]
[1753449362242,0.002,3711.2,3711.1,2.69461884]
[1753449362432,0.002,3711.2,3711.1,6.96961884]
[1753449362741,0.002,3711.2,3711.1,4.275]
[1753449362742,0.4955,3711.2,3711.1,4.275]
[1753449363738,0.4955,3711.2,3711.1,6.96961884]
[1753449363952,0.002,3711.2,3711.1,6.96961884]
[1753449364154,0.002,3711.2,3711.1,8.73875694]
[1753449364320,0.4955,3711.2,3711.1,4.274]
[1753449364701,0.002,3711.2,3711.1,6.96861884]
[1753449364934,0.002,3711.2,3711.1,8.37711884]
[1753449365332,0.002,3711.2,3711.1,7.76011884]
[1753449365602,0.4955,3711.2,3711.0,2.69464403]
[1753449365807,0.4955,3711.2,3711.1,6.96761884]
[1753449366756,0.002,3711.2,3711.1,6.96761884]
[1753449366955,0.4894,3711.2,3711.1,4.273]
[1753449367178,0.4894,3711.2,3710.8,0.7666]
[1753449367365,0.002,3711.2,3710.9,4.272]
[1753449367727,0.002,3711.2,3710.9,4.29894764]
[1753449367922,0.002,3711.2,3711.0,2.69469145]
[1753449368147,0.002,3711.2,3711.1,6.96661884]
[1753449369061,0.002,3711.2,3711.1,7.40461884]
[1753449371046,0.002,3711.2,3711.1,8.49121449]
[1753449371878,0.002,3711.2,3711.1,8.62561449]
[1753449373180,0.4894,3711.2,3711.1,8.18761449]
[1753449373892,0.002,3711.2,3711.1,9.38641449]
[1753449374985,0.002,3711.2,3711.1,9.55251449]
[1753449377591,0.002,3711.2,3711.1,4.67641449]
[1753449377781,0.4894,3711.2,3711.1,7.85881884]
[1753449378765,0.002,3711.5,3711.4,2.69440103]
[1753449378985,0.002,3711.5,3711.4,6.96240103]
[1753449380490,0.4535,3711.5,3711.4,6.96240103]
[1753449380688,0.4894,3711.5,3711.4,6.96240103]
[1753449381002,0.002,3711.5,3711.4,6.96240103]
[1753449381160,0.9409,3711.5,3711.4,6.96140103]
[1753449381359,0.9013,3711.9,3711.4,6.96140103]
[1753449381360,0.1344,3711.9,3711.4,6.96140103]
[1753449382198,0.1344,3711.6,3711.5,4.267]
[1753449383290,0.6218,3711.6,3711.5,4.267]
[1753449384398,1.4235,3711.6,3711.5,4.267]
[1753449385157,1.4235,3711.6,3711.5,6.96132843]
[1753449385484,0.7551,3712.4,3711.5,5.1684]
[1753449385684,0.1344,3712.1,3712.0,2.69395483]
[1753449385861,0.1344,3712.1,3712.0,6.95995483]
[1753449386195,0.7551,3712.7,3712.3,2.69374781]
[1753449386491,0.1344,3712.5,3712.4,4.266]
[1753449386699,0.1344,3712.5,3712.4,6.95967525]
[1753449387466,0.1344,3712.5,3712.4,4.266]
[1753449387666,0.6218,3712.5,3712.4,4.266]
[1753449387972,0.1344,3712.5,3712.4,4.266]
[1753449388516,0.6218,3712.5,3712.4,4.266]
[1753449388680,0.6218,3712.5,3712.4,4.265]
[1753449389707,0.1344,3712.5,3712.4,4.265]
[1753449389893,0.6218,3712.5,3712.3,2.69374553]
[1753449390089,0.1344,3712.5,3712.4,4.264]
[1753449390907,0.6218,3712.5,3712.4,4.264]
[1753449391709,0.1344,3712.5,3712.4,4.264]
[1753449391874,0.1344,3712.5,3712.4,6.95767525]
[1753449392079,0.4874,3712.9,3712.4,6.95767525]
[1753449392289,0.1344,3712.7,3712.5,2.69360092]
[1753449392493,0.1344,3712.7,3712.6,4.264]
[1753449392998,0.1344,3712.7,3712.6,6.95753014]
[1753449393314,0.1344,3712.7,3712.6,4.264]
[1753449394117,3.18057436,3713.1,3712.6,4.264]
[1753449394118,0.1344,3713.1,3712.6,5.2998]
[1753449394286,0.1344,3713.1,3712.9,2.69330648]
[1753449394491,0.1344,3713.1,3713.0,4.263]
[1753449394702,0.1344,3713.1,3712.7,0.9014]
[1753449394902,0.1344,3713.1,3712.2,3.47039127]
[1753449394903,0.4874,3713.0,3712.8,4.263]
[1753449395109,0.1344,3712.9,3712.8,6.95637448]
[1753449395303,3.1803788,3713.4,3712.8,6.95637448]
[1753449395304,0.4874,3713.4,3713.0,2.69320111]
[1753449395507,0.4874,3713.4,3713.1,4.262]
[1753449396006,0.1344,3713.2,3713.1,4.262]
[1753449397682,0.1344,3713.2,3713.1,4.261]
[1753449397683,0.6186,3713.2,3713.1,4.261]
[1753449399308,0.6186,3713.2,3712.8,0.73943745]
[1753449399624,0.4842,3713.1,3712.6,3.26960505]
[1753449399923,0.4842,3713.0,3712.7,6.95444764]
[1753449400094,0.1364,3713.2,3712.7,6.95444764]
[1753449400294,0.1364,3713.2,3712.8,3.58817906]
[1753449400511,0.1364,3713.2,3712.9,4.26]
[1753449400818,0.1364,3713.2,3712.9,1.06761076]
[1753449400819,1.2604,3713.1,3712.9,1.06761076]
[1753449400991,0.6186,3713.0,3712.1,0.8217]
[1753449401197,0.1344,3712.7,3712.3,2.69369683]
[1753449401511,0.1344,3712.7,3712.3,3.58849683]
[1753449401676,0.1344,3712.7,3712.3,4.73834552]
[1753449402111,0.1344,3712.7,3712.4,3.13537246]
[1753449402317,0.1344,3712.7,3712.5,4.26]
[1753449402515,0.1344,3712.7,3712.5,4.7017]
[1753449402677,0.1344,3712.7,3712.5,5.1548]
[1753449402882,0.1344,3712.7,3712.5,6.33744965]
[1753449404427,0.1344,3712.7,3712.5,5.88434965]
[1753449404724,0.1344,3712.7,3712.5,6.33744965]
[1753449405807,3.17777607,3712.6,3711.7,3.50398325]
[1753449406031,2.69401586,3712.0,3711.4,3.50419009]
[1753449406349,0.1344,3711.7,3711.1,2.69455436]
[1753449406637,0.1344,3711.7,3711.2,6.95253221]
[1753449406796,0.1344,3711.7,3711.2,4.258]
[1753449407132,0.1344,3711.7,3711.3,0.8948]
[1753449407431,0.1344,3711.7,3711.3,0.4417]
[1753449407600,0.1344,3711.7,3711.4,5.05617687]
[1753449408120,0.1344,3711.7,3711.4,5.49787687]
[1753449408599,0.1344,3711.7,3711.4,5.95097687]
[1753449408799,0.1344,3711.7,3711.4,5.05617687]
[1753449409696,0.8016,3712.4,3711.6,2.69425584]
[1753449409895,3.0,3712.6,3711.9,2.69403809]
[1753449410095,3.0,3712.6,3711.7,9.05711398]
[1753449410096,0.1344,3712.3,3712.0,7.84574865]
[1753449410297,1.2939,3712.2,3711.1,0.4417]
[1753449410496,2.82845057,3711.9,3711.3,2.6944728]
[1753449410695,0.1344,3711.7,3711.2,2.69452565]
[1753449410930,0.8097,3712.2,3711.1,0.4417]
[1753449411135,0.1344,3711.4,3710.9,2.82912075]
[1753449411430,0.1344,3711.4,3711.0,4.257]
[1753449411635,0.1344,3711.4,3711.0,5.1518]
[1753449411835,0.1344,3711.4,3711.0,4.257]
[1753449412140,0.1344,3711.4,3711.1,3.58941197]
[1753449412636,0.1344,3711.4,3711.2,3.58933461]
[1753449412936,0.55,3712.2,3711.2,3.58933461]
[1753449412937,3.0,3712.6,3711.3,7.91387691]
[1753449413133,0.1344,3712.3,3712.0,2.69396484]
[1753449413434,0.1344,3712.6,3712.2,2.69382037]
[1753449413633,0.1344,3712.6,3712.4,2.69364896]
[1753449413814,0.1344,3712.6,3712.5,4.256]
[1753449414013,0.1344,3712.6,3712.5,7.84440269]
[1753449414320,2.66836455,3712.9,3712.7,2.69345203]
[1753449414517,2.80276455,3712.9,3712.8,4.256]
[1753449415534,3.28696455,3712.9,3712.8,4.256]
[1753449415904,2.80276455,3712.9,3712.8,4.256]
[1753449416523,3.28696455,3712.9,3712.8,4.256]
[1753449417209,2.69338868,3712.8,3711.8,1.2634]
[1753449417404,0.1344,3712.5,3711.9,4.255]
[1753449417608,0.8902,3712.2,3711.7,0.1344]
[1753449417809,0.1344,3711.9,3711.8,4.255]
[1753449421042,0.1344,3711.9,3711.6,3.14735065]
[1753449421249,0.1344,3711.9,3711.7,4.254]
[1753449422318,0.1344,3711.9,3711.8,1.6696]
[1753449423235,0.1344,3711.9,3711.8,0.8948]
[1753449423616,0.1344,3711.9,3711.7,4.254]
[1753449424043,0.1344,3711.9,3711.7,4.7071]
[1753449424218,0.1344,3711.9,3711.7,4.254]
[1753449424646,0.1344,3711.9,3711.7,4.6957]
[1753449424860,0.1344,3711.9,3711.8,0.4417]
[1753449425150,0.1344,3711.9,3711.7,4.7071]
[1753449425451,0.1344,3711.9,3711.7,4.254]
[1753449425754,0.1344,3711.9,3711.7,4.6957]
[1753449426059,0.1344,3711.9,3711.8,0.8948]
[1753449426649,0.1344,3711.9,3711.7,4.254]
[1753449427025,0.1344,3711.9,3711.8,4.252]
[1753449427421,0.5978,3711.9,3711.8,4.252]
[1753449428360,0.1344,3711.9,3711.8,4.252]
[1753449431534,2.69418712,3711.7,3711.1,3.59989877]
[1753449431735,0.5978,3711.6,3711.2,4.251]
[1753449431966,0.4634,3711.5,3711.2,4.251]
[1753449432280,0.1344,3711.6,3711.3,0.4327]
[1753449432433,0.1344,3711.6,3711.4,5.1563]
[1753449432637,0.1344,3711.6,3711.4,4.251]
[1753449433872,0.1344,3711.6,3711.3,2.69447297]
[1753449434039,0.1344,3711.6,3711.4,4.25]
[1753449434729,0.1344,3711.6,3711.5,0.9053]
[1753449435369,0.1344,3711.6,3711.5,3.59962843]
[1753449435974,0.1344,3711.6,3711.5,0.9053]
[1753449436668,0.1344,3711.6,3711.5,0.4327]
[1753449436969,0.1344,3711.6,3711.4,4.25]
[1753449437470,0.1344,3711.6,3711.3,2.69445709]
[1753449437471,1.2373,3711.5,3710.7,0.9053]
[1753449437635,0.1344,3711.4,3710.9,2.69472054]
[1753449437844,0.1344,3711.2,3710.9,6.94372054]
[1753449438061,0.1344,3711.2,3711.0,2.69468886]
[1753449438265,0.1344,3711.2,3711.1,4.249]
[1753449441250,0.1344,3711.2,3710.8,2.69482491]
[1753449441453,0.5978,3711.2,3710.9,4.248]
[1753449442282,0.1344,3711.2,3710.9,6.9427547]
[1753449442478,0.1344,3711.2,3711.0,2.69468199]
[1753449442685,0.1344,3711.2,3711.1,4.248]
[1753449443853,0.1344,3711.2,3710.7,0.1344]
[1753449444048,2.82914579,3711.0,3710.6,6.469]
[1753449444249,0.1344,3710.8,3710.7,4.248]
[1753449445462,0.1344,3710.8,3710.6,6.469]
[1753449445785,0.1344,3710.8,3710.7,4.247]
[1753449446284,0.1344,3710.8,3710.7,5.1523]
[1753449446945,0.1344,3710.8,3710.7,4.247]
[1753449447307,0.1344,3710.8,3710.7,5.1523]
[1753449448790,0.1344,3710.8,3710.7,0.9053]
[1753449448960,0.1344,3710.8,3710.7,7.84720931]
[1753449449578,0.1344,3710.8,3710.7,3.60020931]
[1753449449779,0.1344,3710.8,3710.7,7.84620931]
[1753449449958,0.1344,3710.8,3710.7,5.1513]
[1753449450993,0.1344,3710.8,3710.7,4.6787]
[1753449451361,0.1344,3710.8,3710.7,7.84620931]
[1753449455102,0.1344,3710.8,3710.7,4.246]
[1753449455278,0.5978,3710.8,3710.6,6.469]
[1753449455602,1.2208,3710.7,3710.6,6.469]
[1753449455895,1.2208,3710.7,3710.6,10.713]
[1753449456797,0.1344,3710.8,3710.6,10.713]
[1753449457306,0.7498156,3710.8,3710.6,0.001]
[1753449457505,8.13723087,3710.7,3710.6,0.001]
[1753449458618,3.0,3710.9,3710.6,0.001]
[1753449458771,0.8304,3711.1,3710.7,4.243]
[1753449458965,7.04,3711.6,3710.9,0.765]
[1753449459305,0.4441,3712.1,3710.9,0.765]
[1753449459306,0.96186342,3712.4,3711.1,0.7612]
[1753449459478,0.96186342,3712.4,3711.0,5.22774691]
[1753449459479,0.13576342,3712.4,3712.3,2.69374781]
[1753449459671,0.13576342,3712.4,3712.3,7.89454781]
[1753449459868,0.002,3713.2,3712.3,5.2008]
[1753449460074,0.002,3713.2,3712.2,0.0269382]
[1753449460266,0.002,3713.2,3712.4,2.69367525]
[1753449460267,0.9249,3713.1,3712.4,2.69367525]
[1753449460480,0.002,3713.2,3713.1,2.69316743]
[1753449460692,0.002,3713.2,3713.1,6.93616743]
[1753449460891,0.002,3713.2,3713.1,4.243]
[1753449461110,0.002,3713.2,3713.1,7.89396743]
[1753449461272,0.002,3713.2,3713.1,5.2008]
[1753449462081,0.002,3713.2,3713.1,7.89396743]
[1753449462482,0.002,3713.2,3713.1,5.2008]
[1753449463718,0.002,3713.2,3712.5,0.4975]
[1753449463890,0.002,3713.2,3712.6,4.242]
[1753449463891,0.4808,3713.1,3712.6,4.242]
[1753449464090,2.6951105,3713.2,3712.6,5.01610807]
[1753449464286,2.6951105,3713.2,3712.6,5.97390807]
[1753449464620,0.002,3713.2,3712.6,3.96509783]
[1753449464804,2.69329786,3713.0,3712.7,4.242]
[1753449465009,3.17412499,3712.9,3712.8,4.241]
[1753449465204,0.4808,3712.9,3712.8,4.241]
[1753449465720,3.17411695,3712.9,3712.8,4.24]
[1753449465883,3.61821695,3712.9,3712.8,4.24]
[1753449466085,3.17411695,3712.9,3712.8,4.24]
[1753449466386,2.69331695,3712.9,3712.8,4.24]
[1753449466884,3.17411695,3712.9,3712.8,4.24]
[1753449467192,2.69380046,3712.3,3711.6,0.8258]
[1753449467385,0.4808,3712.3,3711.2,7.33736643]
[1753449467596,2.69402104,3712.0,3711.3,6.93446797]
[1753449467822,2.69404919,3711.9,3711.3,4.24]
[1753449468485,2.69398594,3712.0,3711.3,4.24]
[1753449468821,0.1344,3711.6,3711.4,1.33312664]
[1753449469320,0.1344,3711.6,3711.4,2.29092664]
[1753449469491,0.1344,3711.6,3711.4,1.83062664]
[1753449469837,0.1344,3711.6,3711.5,0.4603]
[1753449470041,0.1344,3711.6,3711.5,3.65212843]
[1753449470316,0.1344,3711.9,3711.6,2.69420304]
[1753449470517,0.1344,3711.9,3711.7,7.89098155]
[1753449470823,0.1344,3711.9,3711.7,5.1968]
[1753449471022,0.1344,3711.9,3711.8,0.9578]
[1753449471438,0.1344,3711.9,3711.7,4.239]
[1753449471735,0.1344,3711.9,3711.7,5.64985104]
[1753449471890,0.1344,3711.9,3711.8,0.4603]
[1753449472081,0.1344,3711.9,3711.8,3.65191067]
[1753449472315,0.7542,3712.9,3712.2,2.69374822]
[1753449472518,0.1344,3712.5,3712.3,6.93272322]
[1753449472832,0.1344,3712.5,3712.4,0.9578]
[1753449473197,0.1344,3712.5,3712.4,3.65147525]
[1753449473495,0.1344,3712.5,3712.4,0.4603]
[1753449474029,0.1344,3712.5,3712.4,3.65147525]
[1753449474230,0.1344,3712.8,3712.6,2.69345822]
[1753449474393,0.1344,3712.8,3712.7,4.95521335]
[1753449474722,0.1344,3712.8,3712.7,4.238]
[1753449475599,0.1344,3712.8,3712.7,6.93145759]
[1753449475955,0.1344,3712.8,3712.7,4.238]
[1753449476523,0.6152,3712.8,3712.7,4.238]
[1753449477002,0.1344,3712.8,3712.7,4.238]
[1753449477206,0.1344,3712.8,3712.7,0.69315988]
[1753449477410,4.06838504,3712.8,3712.7,4.237]
[1753449478305,0.1344,3712.8,3712.7,4.237]
[1753449479846,2.82778504,3712.8,3712.7,4.237]
[1753449480138,3.30858504,3712.8,3712.7,4.237]
[1753449480846,0.6152,3712.8,3712.7,4.237]
[1753449481056,0.1344,3712.8,3712.7,4.237]
[1753449481520,0.1344,3713.1,3712.8,2.69333912]
[1753449481712,0.1344,3713.1,3712.9,0.4603]
[1753449481933,0.1344,3713.1,3713.0,4.236]
[1753449482444,0.6152,3713.1,3713.0,4.236]
[1753449482655,0.1344,3713.1,3713.0,4.236]
[1753449485160,2.82756743,3713.1,3712.8,0.4603]
[1753449485349,2.69316743,3713.1,3712.9,4.235]
[1753449485519,2.69316743,3713.1,3712.5,3.19104878]
[1753449485520,2.82771327,3712.9,3712.5,0.9578]
[1753449485718,2.82771327,3712.9,3712.6,4.235]
[1753449485920,0.1344,3712.7,3712.6,4.235]
[1753449487017,0.1344,3712.7,3712.6,5.1613]
[1753449487757,0.1344,3712.7,3712.6,5.94679628]
[1753449488257,0.8062,3712.7,3712.6,0.78549628]
[1753449488457,0.1344,3712.8,3712.6,4.234]
[1753449488755,0.1344,3712.8,3712.6,4.6887]
[1753449488964,0.1344,3712.8,3712.6,5.1603]
[1753449489726,0.1344,3712.8,3712.6,4.6887]
[1753449490072,0.1344,3712.8,3712.6,4.234]
[1753449490568,0.1344,3712.8,3712.6,5.03283456]
[1753449490926,0.1344,3712.8,3712.6,5.95913456]
[1753449491181,0.1344,3712.8,3712.7,0.4547]
[1753449491470,0.1344,3712.8,3712.7,0.9263]
[1753449492323,0.1344,3712.8,3712.7,3.14815759]
[1753449492528,0.002,3713.2,3712.8,2.69333752]
[1753449492771,0.1364,3713.2,3712.9,4.232]
[1753449492939,0.1364,3713.2,3712.9,7.85160397]
[1753449493138,0.1364,3713.2,3712.9,5.1583]
[1753449493341,2.47624341,3713.1,3712.9,5.1583]
[1753449493554,2.47624341,3713.1,3712.9,4.232]
[1753449493836,0.6329,3713.0,3712.5,3.14825182]
[1753449494049,0.6329,3713.0,3712.6,4.96001897]
[1753449494337,2.47198884,3712.9,3712.6,7.65354184]
[1753449494536,2.47198884,3712.9,3712.6,8.57984184]
[1753449495058,2.47198884,3712.9,3712.7,3.61975712]
[1753449495258,2.47198884,3712.9,3712.8,6.92538504]
[1753449495565,2.47198884,3712.9,3712.8,6.28562277]
[1753449495747,2.47198884,3712.9,3712.8,8.97900781]
[1753449497255,2.47198884,3712.9,3712.8,6.28562277]
[1753449497670,2.47198884,3712.9,3712.8,8.97900781]
[1753449498765,2.47198884,3712.9,3712.8,7.11602277]
[1753449498960,2.47198884,3712.9,3712.8,1.12732277]
[1753449499247,2.60638884,3712.9,3712.3,0.7713]
[1753449499449,2.60638884,3712.9,3711.3,0.001]
[1753449499450,2.69361199,3712.5,3712.4,4.23]
[1753449499769,1.2668,3712.8,3712.4,4.23]
[1753449499770,5.95214952,3712.8,3712.4,4.23]
[1753449499975,2.54217143,3712.5,3712.4,5.1563]
[1753449500281,2.40777143,3712.5,3712.4,6.01844436]
[1753449500645,2.40777143,3712.5,3712.4,9.47451961]
[1753449500854,2.40777143,3712.5,3712.4,9.60891961]
[1753449501461,2.40777143,3712.5,3712.4,2.07924436]
[1753449501662,2.40777143,3712.5,3712.4,4.23]
[1753449502880,2.40777143,3712.5,3712.4,7.84997525]
[1753449503087,2.40777143,3712.5,3712.4,5.1563]
[1753449503249,2.40777143,3712.5,3712.4,7.84997525]
[1753449505690,2.40777143,3712.5,3712.4,8.77657525]
[1753449505892,2.40777143,3712.5,3712.4,9.92361376]
[1753449507687,2.40777143,3712.5,3712.4,9.45201376]
[1753449507905,2.40777143,3712.5,3712.4,9.92361376]
[1753449509662,2.40777143,3712.5,3712.4,5.22201376]
[1753449509866,2.40777143,3712.5,3712.4,8.20411376]
[1753449510097,7.5385,3712.9,3712.5,2.69359521]
[1753449510275,7.04,3712.9,3712.6,4.228]
[1753449510490,0.4985,3712.8,3712.6,4.228]
[1753449510689,0.4985,3712.8,3712.5,1.08978435]
[1753449510865,0.6329,3712.7,3712.6,4.228]
[1753449511992,3.32635759,3712.7,3712.6,4.228]
[1753449512157,0.6329,3712.7,3712.6,4.228]
[1753449514565,3.32635759,3712.7,3712.6,4.227]
[1753449515069,3.32635759,3712.7,3712.4,0.001]
[1753449515070,2.69360269,3712.5,3712.4,0.001]
[1753449515302,4.18179872,3712.5,3712.4,0.001]
[1753449515457,5.12439872,3712.5,3712.4,0.001]
[1753449515661,5.12439872,3712.5,3712.4,4.227]
[1753449518089,4.07830269,3712.5,3712.4,4.227]
[1753449523715,8.06260269,3712.5,3712.4,0.001]
[1753449525486,8.31458485,3712.5,3712.4,0.001]
[1753449526088,8.06260269,3712.5,3712.4,0.001]
[1753449527117,8.31449085,3712.5,3712.4,0.001]
[1753449527636,9.30818174,3712.5,3712.4,0.001]
[1753449527817,8.31449085,3712.5,3712.4,0.001]
[1753449528321,8.06260269,3712.5,3712.4,0.001]
[1753449530826,7.58920269,3712.5,3712.4,0.001]
[1753449531298,8.02350269,3712.5,3712.4,0.001]
[1753449532017,15.06350269,3712.5,3712.4,1e-08]
[1753449532996,4.02298325,3711.7,3711.6,0.001]
[1753449533201,14.47815786,3711.7,3711.6,0.001]
[1753449533411,15.37185786,3711.7,3711.6,0.001]
[1753449533613,14.93755786,3711.7,3711.6,0.001]
[1753449535927,15.37185786,3711.7,3711.6,0.001]
[1753449536698,14.93755786,3711.7,3711.6,0.001]
[1753449538828,13.77106606,3711.0,3710.9,0.001]
[1753449539032,14.32106606,3711.0,3710.9,0.001]
[1753449539229,14.91486606,3711.0,3710.9,0.001]
[1753449540342,7.13469145,3711.0,3710.9,0.001]
[1753449540524,7.13469145,3711.0,3710.9,0.9204]
[1753449540525,0.1344,3711.0,3710.9,0.9204]
[1753449540735,0.1344,3711.0,3710.9,1.7015]
[1753449541030,3.37909145,3711.0,3710.9,0.001]
[1753449541403,3.83849145,3711.0,3710.9,0.001]
[1753449542835,3.37909145,3711.0,3710.9,0.001]
[1753449543323,3.83849145,3711.0,3710.9,0.001]
[1753449543507,10.87849145,3711.0,3710.9,0.001]
[1753449544423,10.41909145,3711.0,3710.9,0.001]
[1753449544625,12.86909145,3711.0,3710.9,0.9204]
[1753449545836,7.1744,3711.0,3710.9,0.9204]
[1753449546620,7.1744,3711.0,3710.9,0.8945]
[1753449548524,9.86909145,3711.0,3710.9,0.8945]
[1753449548942,9.86909145,3711.0,3710.9,0.001]
[1753449550018,10.41909145,3711.0,3710.9,0.001]
[1753449551233,10.41909145,3711.0,3710.9,0.8945]